[Event "Late Titled Tuesday Blitz February 8 2022"]
[White "Sarkar, Justin"]
[Black "Velikanov, Alexander"]
[WhiteFideId "2010011"]
[BlackFideId "2039290"]
[WhiteElo "2038"]
[BlackElo "2259"]
[Result "0-1"]
[Round "01"]
[TimeControl "180+1"]
[Date "2022.02.09"]
[WhiteClock "0:00:01"]
[BlackClock "0:00:47"]

1. e4 {[%clk 0:02:56]}  d6 {[%clk 0:02:55]} 2. d4 {[%clk 0:02:55]}  Nf6 {[%clk 0:02:55]} 3. Nc3 {[%clk 0:02:52]}  e5 {[%clk 0:02:54]} 4. Nf3 {[%clk 0:02:48]}  Nbd7 {[%clk 0:02:53]} 5. g4 {[%clk 0:02:44]}  Nxg4 {[%clk 0:02:52]} 6. Rg1 {[%clk 0:02:43]}  Ngf6 {[%clk 0:02:52]} 7. Be3 {[%clk 0:02:41]}  c6 {[%clk 0:02:51]} 8. Bc4 {[%clk 0:02:35]}  b5 {[%clk 0:02:50]} 9. Bb3 {[%clk 0:02:27]}  h6 {[%clk 0:02:33]} 10. a4 {[%clk 0:02:07]}  b4 {[%clk 0:02:27]} 11. Ne2 {[%clk 0:02:02]}  Nxe4 {[%clk 0:02:18]} 12. dxe5 {[%clk 0:01:52]}  dxe5 {[%clk 0:02:13]} 13. Bxf7+ {[%clk 0:01:25]}  Kxf7 {[%clk 0:02:02]} 14. Nxe5+ {[%clk 0:01:25]}  Kg8 {[%clk 0:02:01]} 15. Nxc6 {[%clk 0:01:18]}  Qe8 {[%clk 0:01:48]} 16. Qd5+ {[%clk 0:01:08]}  Kh7 {[%clk 0:01:45]} 17. Ne7 {[%clk 0:00:32]}  Qxe7 {[%clk 0:01:21]} 18. Qxa8 {[%clk 0:00:28]}  Ba6 {[%clk 0:01:16]} 19. O-O-O {[%clk 0:00:21]}  Bxe2 {[%clk 0:00:47]} 20. Rxd7 {[%clk 0:00:17]}  Qxd7 {[%clk 0:00:48]} 21. Qxe4+ {[%clk 0:00:17]}  Kg8 {[%clk 0:00:49]} 22. Bd4 {[%clk 0:00:02]}  Bh5 {[%clk 0:00:48]} 23. Bxg7 {[%clk 0:00:01]}  Bxg7 {[%clk 0:00:47]} 0-1


[Site "https://www.chess.com"]

[Event "Late Titled Tuesday Blitz February 8 2022"]
[White "Savchenko, Boris"]
[Black "Noboa Silva, Kevin"]
[WhiteFideId "4147332"]
[BlackFideId "3618471"]
[WhiteElo "2512"]
[BlackElo "2161"]
[Result "1-0"]
[Round "01"]
[TimeControl "180+1"]
[Date "2022.02.08"]
[WhiteClock "0:00:37"]
[BlackClock "0:00:02"]

1. e4 {[%clk 0:03:00]}  e6 {[%clk 0:02:59]} 2. d4 {[%clk 0:03:00]}  d5 {[%clk 0:02:59]} 3. Nc3 {[%clk 0:03:00]}  Nf6 {[%clk 0:02:58]} 4. e5 {[%clk 0:03:00]}  Nfd7 {[%clk 0:02:57]} 5. f4 {[%clk 0:03:01]}  c5 {[%clk 0:02:57]} 6. Nf3 {[%clk 0:03:02]}  Be7 {[%clk 0:02:57]} 7. Be3 {[%clk 0:03:02]}  O-O {[%clk 0:02:53]} 8. a3 {[%clk 0:03:00]}  b6 {[%clk 0:02:53]} 9. Bd3 {[%clk 0:02:51]}  f5 {[%clk 0:02:46]} 10. Rg1 {[%clk 0:02:18]}  Nc6 {[%clk 0:02:29]} 11. Nb5 {[%clk 0:02:11]}  Ba6 {[%clk 0:02:11]} 12. a4 {[%clk 0:01:56]}  Nb4 {[%clk 0:01:44]} 13. Be2 {[%clk 0:01:56]}  g6 {[%clk 0:01:22]} 14. g4 {[%clk 0:01:53]}  fxg4 {[%clk 0:00:57]} 15. Rxg4 {[%clk 0:01:52]}  Kh8 {[%clk 0:00:51]} 16. h4 {[%clk 0:01:37]}  Bxb5 {[%clk 0:00:29]} 17. axb5 {[%clk 0:01:36]}  Rc8 {[%clk 0:00:19]} 18. c3 {[%clk 0:01:33]}  cxd4 {[%clk 0:00:17]} 19. Nxd4 {[%clk 0:01:33]}  Nc5 {[%clk 0:00:17]} 20. cxb4 {[%clk 0:01:29]}  Bxh4+ {[%clk 0:00:17]} 21. Kd2 {[%clk 0:01:05]}  Ne4+ {[%clk 0:00:17]} 22. Kd3 {[%clk 0:01:06]}  Bf2 {[%clk 0:00:13]} 23. Rxa7 {[%clk 0:00:58]}  Rc4 {[%clk 0:00:10]} 24. Rxh7+ {[%clk 0:00:47]}  Kxh7 {[%clk 0:00:10]} 25. Qh1+ {[%clk 0:00:47]}  Kg7 {[%clk 0:00:09]} 26. Nxe6+ {[%clk 0:00:46]}  Kf7 {[%clk 0:00:05]} 27. Nxd8+ {[%clk 0:00:46]}  Rxd8 {[%clk 0:00:03]} 28. Qh7+ {[%clk 0:00:45]}  Ke8 {[%clk 0:00:03]} 29. Rxg6 {[%clk 0:00:38]}  Bxe3 {[%clk 0:00:02]} 30. Rg8# {[%clk 0:00:37]} 1-0


[Site "https://www.chess.com"]

[Event "Late Titled Tuesday Blitz February 8 2022"]
[White "Seliverstov, Vladimir"]
[Black "Meissner, Felix"]
[WhiteFideId "4192036"]
[BlackFideId "24671827"]
[WhiteElo "2489"]
[BlackElo "2350"]
[Result "1-0"]
[Round "01"]
[TimeControl "180+1"]
[Date "2022.02.09"]
[WhiteClock "0:00:14"]
[BlackClock "0:00:25"]

1. d4 {[%clk 0:02:59]}  Nf6 {[%clk 0:02:59]} 2. c4 {[%clk 0:02:57]}  g6 {[%clk 0:02:59]} 3. g3 {[%clk 0:02:51]}  d5 {[%clk 0:02:58]} 4. Bg2 {[%clk 0:02:51]}  Bg7 {[%clk 0:02:58]} 5. cxd5 {[%clk 0:02:51]}  Nxd5 {[%clk 0:02:59]} 6. e4 {[%clk 0:02:51]}  Nb6 {[%clk 0:02:59]} 7. Ne2 {[%clk 0:02:52]}  Nc6 {[%clk 0:02:59]} 8. d5 {[%clk 0:02:51]}  Na5 {[%clk 0:02:59]} 9. O-O {[%clk 0:02:51]}  c6 {[%clk 0:02:58]} 10. Nbc3 {[%clk 0:02:51]}  cxd5 {[%clk 0:02:57]} 11. exd5 {[%clk 0:02:52]}  Nac4 {[%clk 0:02:57]} 12. b3 {[%clk 0:02:51]}  Nd6 {[%clk 0:02:57]} 13. Bf4 {[%clk 0:02:49]}  O-O {[%clk 0:02:56]} 14. Rc1 {[%clk 0:02:50]}  Bd7 {[%clk 0:02:56]} 15. Qd2 {[%clk 0:02:50]}  Rc8 {[%clk 0:02:56]} 16. Rfe1 {[%clk 0:02:49]}  Re8 {[%clk 0:02:56]} 17. Nd4 {[%clk 0:02:48]}  Nf5 {[%clk 0:02:51]} 18. Ndb5 {[%clk 0:02:47]}  a6 {[%clk 0:02:50]} 19. Na3 {[%clk 0:02:42]}  Nd4 {[%clk 0:02:34]} 20. Be5 {[%clk 0:02:33]}  Nf5 {[%clk 0:02:34]} 21. Bxg7 {[%clk 0:02:31]}  Kxg7 {[%clk 0:02:34]} 22. Ne4 {[%clk 0:02:26]}  Rxc1 {[%clk 0:02:33]} 23. Rxc1 {[%clk 0:02:27]}  Nc8 {[%clk 0:02:30]} 24. Nc4 {[%clk 0:02:23]}  Nfd6 {[%clk 0:02:28]} 25. Nc5 {[%clk 0:02:19]}  Bf5 {[%clk 0:02:23]} 26. Qd4+ {[%clk 0:02:14]}  Kg8 {[%clk 0:02:22]} 27. Re1 {[%clk 0:02:13]}  Nb5 {[%clk 0:02:20]} 28. Qd2 {[%clk 0:02:06]}  Ncd6 {[%clk 0:02:12]} 29. Ne5 {[%clk 0:02:04]}  Qb6 {[%clk 0:02:10]} 30. b4 {[%clk 0:02:00]}  Na3 {[%clk 0:02:07]} 31. Qc3 {[%clk 0:01:41]}  Nab5 {[%clk 0:02:05]} 32. Qe3 {[%clk 0:01:40]}  a5 {[%clk 0:02:00]} 33. a3 {[%clk 0:01:38]}  axb4 {[%clk 0:02:00]} 34. axb4 {[%clk 0:01:39]}  Nc7 {[%clk 0:02:00]} 35. Qf4 {[%clk 0:01:34]}  Na6 {[%clk 0:01:58]} 36. Nxa6 {[%clk 0:01:30]}  bxa6 {[%clk 0:01:58]} 37. Nc6 {[%clk 0:01:28]}  Qc7 {[%clk 0:01:50]} 38. Qe5 {[%clk 0:01:26]}  e6 {[%clk 0:01:40]} 39. Qd4 {[%clk 0:01:11]}  exd5 {[%clk 0:01:38]} 40. Rxe8+ {[%clk 0:01:11]}  Nxe8 {[%clk 0:01:38]} 41. Bxd5 {[%clk 0:01:10]}  Be6 {[%clk 0:01:38]} 42. Bxe6 {[%clk 0:01:05]}  Qxc6 {[%clk 0:01:38]} 43. Bd5 {[%clk 0:00:58]}  Qd6 {[%clk 0:01:28]} 44. Qc4 {[%clk 0:00:58]}  Nc7 {[%clk 0:01:15]} 45. Bxf7+ {[%clk 0:00:57]}  Kg7 {[%clk 0:01:15]} 46. h4 {[%clk 0:00:50]}  Qd7 {[%clk 0:01:07]} 47. Bg8 {[%clk 0:00:48]}  h5 {[%clk 0:00:56]} 48. Qb3 {[%clk 0:00:43]}  Nb5 {[%clk 0:00:47]} 49. Bc4 {[%clk 0:00:41]}  Nd4 {[%clk 0:00:47]} 50. Qb2 {[%clk 0:00:39]}  Qd6 {[%clk 0:00:44]} 51. Bxa6 {[%clk 0:00:33]}  Qf6 {[%clk 0:00:44]} 52. Qa2 {[%clk 0:00:25]}  Nf3+ {[%clk 0:00:42]} 53. Kf1 {[%clk 0:00:25]}  Nh2+ {[%clk 0:00:41]} 54. Kg2 {[%clk 0:00:24]}  Ng4 {[%clk 0:00:39]} 55. Bc4 {[%clk 0:00:22]}  Qd4 {[%clk 0:00:36]} 56. Qe2 {[%clk 0:00:18]}  Ne5 {[%clk 0:00:34]} 57. Be6 {[%clk 0:00:15]}  Nd3 {[%clk 0:00:33]} 58. b5 {[%clk 0:00:12]}  Nb4 {[%clk 0:00:21]} 59. Qe3 {[%clk 0:00:10]}  Qd6 {[%clk 0:00:20]} 60. Bc4 {[%clk 0:00:07]}  Qc7 {[%clk 0:00:17]} 61. Qe4 {[%clk 0:00:05]}  Qc5 {[%clk 0:00:16]} 62. Be2 {[%clk 0:00:04]}  Nc2 {[%clk 0:00:16]} 63. Bf3 {[%clk 0:00:04]}  Ne1+ {[%clk 0:00:15]} 64. Qxe1 {[%clk 0:00:02]}  Qxb5 {[%clk 0:00:16]} 65. Qe7+ {[%clk 0:00:02]}  Kh6 {[%clk 0:00:16]} 66. Qg5+ {[%clk 0:00:03]}  Qxg5 {[%clk 0:00:16]} 67. hxg5+ {[%clk 0:00:04]}  Kxg5 {[%clk 0:00:17]} 68. Kh3 {[%clk 0:00:05]}  h4 {[%clk 0:00:18]} 69. gxh4+ {[%clk 0:00:05]}  Kf4 {[%clk 0:00:17]} 70. Bg4 {[%clk 0:00:06]}  g5 {[%clk 0:00:17]} 71. h5 {[%clk 0:00:06]}  Ke5 {[%clk 0:00:17]} 72. Kg3 {[%clk 0:00:07]}  Kf6 {[%clk 0:00:18]} 73. Kf3 {[%clk 0:00:07]}  Kg7 {[%clk 0:00:19]} 74. Ke4 {[%clk 0:00:08]}  Kh6 {[%clk 0:00:20]} 75. Kf5 {[%clk 0:00:09]}  Kg7 {[%clk 0:00:20]} 76. Kxg5 {[%clk 0:00:10]}  Kh7 {[%clk 0:00:21]} 77. f4 {[%clk 0:00:11]}  Kh8 {[%clk 0:00:22]} 78. f5 {[%clk 0:00:11]}  Kh7 {[%clk 0:00:23]} 79. f6 {[%clk 0:00:12]}  Kg8 {[%clk 0:00:23]} 80. Kg6 {[%clk 0:00:12]}  Kh8 {[%clk 0:00:23]} 81. h6 {[%clk 0:00:13]}  Kg8 {[%clk 0:00:24]} 82. f7+ {[%clk 0:00:13]}  Kf8 {[%clk 0:00:24]} 83. h7 {[%clk 0:00:14]}  Ke7 {[%clk 0:00:25]} 84. h8=Q {[%clk 0:00:14]} 1-0


[Site "https://www.chess.com"]

[Event "Late Titled Tuesday Blitz February 8 2022"]
[White "Sevian, Samuel"]
[Black "Kanyamarala, Tarun"]
[WhiteFideId "2040506"]
[BlackFideId "45004714"]
[WhiteElo "2698"]
[BlackElo "2144"]
[Result "1-0"]
[Round "01"]
[TimeControl "180+1"]
[Date "2022.02.08"]
[WhiteClock "0:02:45"]
[BlackClock "0:01:55"]

1. c4 {[%clk 0:02:56]}  f5 {[%clk 0:02:59]} 2. Nc3 {[%clk 0:02:56]}  Nf6 {[%clk 0:03:00]} 3. g3 {[%clk 0:02:56]}  g6 {[%clk 0:03:00]} 4. Bg2 {[%clk 0:02:56]}  Bg7 {[%clk 0:03:01]} 5. d4 {[%clk 0:02:57]}  O-O {[%clk 0:03:01]} 6. Nf3 {[%clk 0:02:57]}  d6 {[%clk 0:03:01]} 7. O-O {[%clk 0:02:58]}  Qe8 {[%clk 0:03:02]} 8. b3 {[%clk 0:02:57]}  e5 {[%clk 0:02:59]} 9. dxe5 {[%clk 0:02:58]}  Ng4 {[%clk 0:02:59]} 10. Ba3 {[%clk 0:02:59]}  Nxe5 {[%clk 0:02:59]} 11. Nd5 {[%clk 0:02:59]}  Na6 {[%clk 0:02:56]} 12. Qd2 {[%clk 0:02:54]}  Nxf3+ {[%clk 0:02:47]} 13. exf3 {[%clk 0:02:55]}  Bxa1 {[%clk 0:02:44]} 14. Rxa1 {[%clk 0:02:56]}  Qf7 {[%clk 0:02:39]} 15. Bb2 {[%clk 0:02:55]}  Re8 {[%clk 0:02:01]} 16. Nf6+ {[%clk 0:02:53]}  Kf8 {[%clk 0:01:58]} 17. Qh6+ {[%clk 0:02:52]}  Ke7 {[%clk 0:01:57]} 18. Re1+ {[%clk 0:02:49]}  Be6 {[%clk 0:01:58]} 19. Qh4 {[%clk 0:02:46]}  Kf8 {[%clk 0:01:55]} 20. Nxh7+ {[%clk 0:02:45]} 1-0


[Site "https://www.chess.com"]

[Event "Late Titled Tuesday Blitz February 8 2022"]
[White "Sloan, Julia Elizabeth"]
[Black "Postnikov, Daniil"]
[WhiteFideId "2018950"]
[BlackFideId "4166329"]
[WhiteElo "2113"]
[BlackElo "2261"]
[Result "0-1"]
[Round "01"]
[TimeControl "180+1"]
[Date "2022.02.09"]
[WhiteClock "0:01:55"]
[BlackClock "0:01:13"]

1. d4 {[%clk 0:03:00]}  Nf6 {[%clk 0:02:58]} 2. Bg5 {[%clk 0:03:00]}  c5 {[%clk 0:02:59]} 3. d5 {[%clk 0:02:59]}  b5 {[%clk 0:02:59]} 4. Nd2 {[%clk 0:02:57]}  Nxd5 {[%clk 0:02:57]} 5. Ne4 {[%clk 0:02:57]}  Qa5+ {[%clk 0:02:39]} 6. c3 {[%clk 0:02:52]}  e6 {[%clk 0:02:38]} 7. e3 {[%clk 0:02:45]}  f5 {[%clk 0:02:32]} 8. Ng3 {[%clk 0:02:42]}  b4 {[%clk 0:02:17]} 9. cxb4 {[%clk 0:02:35]}  Nxb4 {[%clk 0:02:13]} 10. Ke2 {[%clk 0:02:33]}  Ba6+ {[%clk 0:02:09]} 11. Kf3 {[%clk 0:02:33]}  Bb7+ {[%clk 0:02:09]} 12. Ke2 {[%clk 0:02:31]}  N8c6 {[%clk 0:01:38]} 13. f4 {[%clk 0:02:25]}  h6 {[%clk 0:01:27]} 14. Bh4 {[%clk 0:02:24]}  g5 {[%clk 0:01:27]} 15. fxg5 {[%clk 0:02:24]}  hxg5 {[%clk 0:01:28]} 16. Bxg5 {[%clk 0:02:23]}  Bg7 {[%clk 0:01:29]} 17. Qd2 {[%clk 0:02:04]}  Ba6+ {[%clk 0:01:15]} 18. Kf2 {[%clk 0:02:02]}  Nd3+ {[%clk 0:01:14]} 19. Ke2 {[%clk 0:01:56]}  Nxb2+ {[%clk 0:01:13]} 20. Ke1 {[%clk 0:01:55]}  Bc3 {[%clk 0:01:13]} 0-1


[Site "https://www.chess.com"]

[Event "Late Titled Tuesday Blitz February 8 2022"]
[White "Solon, Nathan"]
[Black "Mirza, Diana"]
[WhiteFideId "2017229"]
[BlackFideId "2503999"]
[WhiteElo "2546"]
[BlackElo "1813"]
[Result "1-0"]
[Round "01"]
[TimeControl "180+1"]
[Date "2022.02.09"]
[WhiteClock "0:01:24"]
[BlackClock "0:00:15"]

1. d4 {[%clk 0:03:00]}  Nf6 {[%clk 0:02:53]} 2. Bg5 {[%clk 0:03:00]}  c6 {[%clk 0:02:53]} 3. Nd2 {[%clk 0:02:57]}  d5 {[%clk 0:02:44]} 4. e3 {[%clk 0:02:52]}  Bf5 {[%clk 0:02:43]} 5. Bxf6 {[%clk 0:02:46]}  gxf6 {[%clk 0:02:43]} 6. g3 {[%clk 0:02:45]}  e5 {[%clk 0:02:42]} 7. c3 {[%clk 0:02:41]}  Nd7 {[%clk 0:02:25]} 8. Bh3 {[%clk 0:02:40]}  Bxh3 {[%clk 0:02:21]} 9. Nxh3 {[%clk 0:02:41]}  Bd6 {[%clk 0:02:20]} 10. Qh5 {[%clk 0:02:38]}  Qe7 {[%clk 0:02:16]} 11. O-O {[%clk 0:02:32]}  O-O-O {[%clk 0:02:14]} 12. a4 {[%clk 0:02:21]}  f5 {[%clk 0:02:01]} 13. Qxf5 {[%clk 0:02:20]}  Kb8 {[%clk 0:01:55]} 14. a5 {[%clk 0:02:16]}  h5 {[%clk 0:01:50]} 15. a6 {[%clk 0:02:16]}  b6 {[%clk 0:01:48]} 16. Ng5 {[%clk 0:02:12]}  Rdf8 {[%clk 0:01:36]} 17. h4 {[%clk 0:02:07]}  Rhg8 {[%clk 0:01:20]} 18. Kh1 {[%clk 0:01:53]}  Rg7 {[%clk 0:01:16]} 19. c4 {[%clk 0:01:46]}  Rfg8 {[%clk 0:01:01]} 20. cxd5 {[%clk 0:01:44]}  cxd5 {[%clk 0:01:00]} 21. Rac1 {[%clk 0:01:35]}  Rxg5 {[%clk 0:00:51]} 22. hxg5 {[%clk 0:01:35]}  Rxg5 {[%clk 0:00:51]} 23. Qh3 {[%clk 0:01:32]}  e4 {[%clk 0:00:49]} 24. Rc6 {[%clk 0:01:29]}  h4 {[%clk 0:00:36]} 25. Rfc1 {[%clk 0:01:27]}  Nc5 {[%clk 0:00:15]} 26. Qc8# {[%clk 0:01:24]} 1-0


[Site "https://www.chess.com"]

[Event "Late Titled Tuesday Blitz February 8 2022"]
[White "Song, Guannan Terry"]
[Black "Niemann, Hans Moke"]
[WhiteFideId "2614189"]
[BlackFideId "2093596"]
[WhiteElo "2115"]
[BlackElo "2636"]
[Result "0-1"]
[Round "01"]
[TimeControl "180+1"]
[Date "2022.02.08"]
[WhiteClock "0:01:03"]
[BlackClock "0:01:53"]

1. e4 {[%clk 0:02:57]}  c5 {[%clk 0:02:59]} 2. Nc3 {[%clk 0:02:54]}  Nc6 {[%clk 0:02:58]} 3. f4 {[%clk 0:02:55]}  g6 {[%clk 0:02:55]} 4. Nf3 {[%clk 0:02:56]}  Bg7 {[%clk 0:02:55]} 5. Bb5 {[%clk 0:02:56]}  Nd4 {[%clk 0:02:54]} 6. O-O {[%clk 0:02:53]}  Nxb5 {[%clk 0:02:48]} 7. Nxb5 {[%clk 0:02:54]}  d5 {[%clk 0:02:48]} 8. exd5 {[%clk 0:02:53]}  a6 {[%clk 0:02:48]} 9. Nc3 {[%clk 0:02:53]}  Nf6 {[%clk 0:02:48]} 10. d4 {[%clk 0:02:53]}  Nxd5 {[%clk 0:02:48]} 11. dxc5 {[%clk 0:02:53]}  Be6 {[%clk 0:02:37]} 12. Ng5 {[%clk 0:02:48]}  Nxc3 {[%clk 0:02:35]} 13. bxc3 {[%clk 0:02:31]}  Bc4 {[%clk 0:02:34]} 14. Qxd8+ {[%clk 0:02:13]}  Rxd8 {[%clk 0:02:33]} 15. Re1 {[%clk 0:02:00]}  Bxc3 {[%clk 0:02:30]} 16. Be3 {[%clk 0:01:56]}  f6 {[%clk 0:02:23]} 17. Ne4 {[%clk 0:01:51]}  Bxe1 {[%clk 0:02:22]} 18. Rxe1 {[%clk 0:01:52]}  Bxa2 {[%clk 0:02:22]} 19. c6 {[%clk 0:01:24]}  bxc6 {[%clk 0:02:12]} 20. Bb6 {[%clk 0:01:23]}  Rb8 {[%clk 0:02:07]} 21. Bc7 {[%clk 0:01:22]}  Rb1 {[%clk 0:02:04]} 22. Nxf6+ {[%clk 0:01:18]}  Kf7 {[%clk 0:02:03]} 23. Rxb1 {[%clk 0:01:19]}  Bxb1 {[%clk 0:02:03]} 24. Ng4 {[%clk 0:01:19]}  Bxc2 {[%clk 0:02:02]} 25. Ne5+ {[%clk 0:01:19]}  Ke6 {[%clk 0:02:02]} 26. Nxc6 {[%clk 0:01:18]}  Be4 {[%clk 0:02:00]} 27. Nb4 {[%clk 0:01:15]}  Ra8 {[%clk 0:01:56]} 28. Ba5 {[%clk 0:01:14]}  Kd6 {[%clk 0:01:55]} 29. Kf2 {[%clk 0:01:15]}  Kc5 {[%clk 0:01:55]} 30. Na2 {[%clk 0:01:09]}  Rb8 {[%clk 0:01:54]} 31. Ke3 {[%clk 0:01:08]}  Bxg2 {[%clk 0:01:53]} 32. Nc3 {[%clk 0:01:07]}  Bc6 {[%clk 0:01:53]} 33. Bc7 {[%clk 0:01:06]}  Rb3 {[%clk 0:01:53]} 34. Kd3 {[%clk 0:01:07]}  Bb5+ {[%clk 0:01:50]} 35. Kc2 {[%clk 0:01:06]}  Kc4 {[%clk 0:01:51]} 36. Ne4 {[%clk 0:01:05]}  Re3 {[%clk 0:01:50]} 37. Nd2+ {[%clk 0:01:05]}  Kd5 {[%clk 0:01:50]} 38. Bb8 {[%clk 0:01:01]}  Rh3 {[%clk 0:01:50]} 39. Nb1 {[%clk 0:00:59]}  Bd3+ {[%clk 0:01:49]} 40. Kb2 {[%clk 0:00:59]}  Bxb1 {[%clk 0:01:50]} 41. Kxb1 {[%clk 0:00:59]}  Rb3+ {[%clk 0:01:50]} 42. Ka2 {[%clk 0:00:59]}  Rxb8 {[%clk 0:01:51]} 43. h4 {[%clk 0:00:59]}  h5 {[%clk 0:01:51]} 44. f5 {[%clk 0:01:00]}  gxf5 {[%clk 0:01:51]} 45. Ka3 {[%clk 0:00:59]}  f4 {[%clk 0:01:52]} 46. Ka4 {[%clk 0:01:00]}  Rb5 {[%clk 0:01:52]} 47. Ka3 {[%clk 0:01:00]}  f3 {[%clk 0:01:53]} 48. Ka4 {[%clk 0:01:01]}  f2 {[%clk 0:01:54]} 49. Ka3 {[%clk 0:01:02]}  f1=Q {[%clk 0:01:54]} 50. Ka4 {[%clk 0:01:03]}  Qa1# {[%clk 0:01:53]} 0-1


[Site "https://www.chess.com"]

[Event "Late Titled Tuesday Blitz February 8 2022"]
[White "Svane, Rasmus"]
[Black "Borisova, Ekaterina"]
[WhiteFideId "4657101"]
[BlackFideId "34124184"]
[WhiteElo "2645"]
[BlackElo "2034"]
[Result "1-0"]
[Round "01"]
[TimeControl "180+1"]
[Date "2022.02.08"]
[WhiteClock "0:00:18"]
[BlackClock "0:00:04"]

1. Nf3 {[%clk 0:02:46]}  d5 {[%clk 0:02:59]} 2. g3 {[%clk 0:02:46]}  g6 {[%clk 0:02:59]} 3. Bg2 {[%clk 0:02:45]}  Bg7 {[%clk 0:03:00]} 4. d4 {[%clk 0:02:45]}  Nf6 {[%clk 0:02:59]} 5. O-O {[%clk 0:02:46]}  O-O {[%clk 0:03:00]} 6. c4 {[%clk 0:02:46]}  c6 {[%clk 0:03:00]} 7. Qb3 {[%clk 0:02:46]}  dxc4 {[%clk 0:02:55]} 8. Qxc4 {[%clk 0:02:47]}  Bf5 {[%clk 0:02:54]} 9. Nc3 {[%clk 0:02:44]}  Ne4 {[%clk 0:02:54]} 10. Qb3 {[%clk 0:02:40]}  Qb6 {[%clk 0:02:51]} 11. Nh4 {[%clk 0:02:39]}  Qxb3 {[%clk 0:02:46]} 12. axb3 {[%clk 0:02:38]}  Nxc3 {[%clk 0:02:38]} 13. bxc3 {[%clk 0:02:39]}  Be6 {[%clk 0:02:38]} 14. b4 {[%clk 0:02:34]}  Nd7 {[%clk 0:02:36]} 15. b5 {[%clk 0:02:24]}  Bd5 {[%clk 0:01:56]} 16. bxc6 {[%clk 0:02:23]}  bxc6 {[%clk 0:01:55]} 17. Ra6 {[%clk 0:01:57]}  Nb6 {[%clk 0:01:48]} 18. Bxd5 {[%clk 0:01:43]}  cxd5 {[%clk 0:01:17]} 19. Ba3 {[%clk 0:01:42]}  Rfc8 {[%clk 0:01:15]} 20. Bxe7 {[%clk 0:01:11]}  Rxc3 {[%clk 0:01:14]} 21. e3 {[%clk 0:01:11]}  Rc7 {[%clk 0:00:46]} 22. Bd6 {[%clk 0:01:08]}  Rd7 {[%clk 0:00:46]} 23. Bc5 {[%clk 0:01:07]}  Nc4 {[%clk 0:00:46]} 24. Rfa1 {[%clk 0:01:05]}  Bf8 {[%clk 0:00:39]} 25. Bxa7 {[%clk 0:00:54]}  Kg7 {[%clk 0:00:36]} 26. Nf3 {[%clk 0:00:50]}  Na3 {[%clk 0:00:20]} 27. R6xa3 {[%clk 0:00:24]}  Bxa3 {[%clk 0:00:18]} 28. Bc5 {[%clk 0:00:23]}  Bxc5 {[%clk 0:00:11]} 29. Rxa8 {[%clk 0:00:24]}  Be7 {[%clk 0:00:06]} 30. Ra5 {[%clk 0:00:23]}  Bf6 {[%clk 0:00:06]} 31. Ne1 {[%clk 0:00:22]}  h5 {[%clk 0:00:06]} 32. Nd3 {[%clk 0:00:22]}  Rd8 {[%clk 0:00:05]} 33. Nf4 {[%clk 0:00:22]}  h4 {[%clk 0:00:04]} 34. Kg2 {[%clk 0:00:21]}  Rb8 {[%clk 0:00:04]} 35. Nxd5 {[%clk 0:00:20]}  hxg3 {[%clk 0:00:04]} 36. Nxf6 {[%clk 0:00:18]}  Kxf6 {[%clk 0:00:04]} 37. hxg3 {[%clk 0:00:18]}  Rb2 {[%clk 0:00:05]} 38. Kf3 {[%clk 0:00:19]}  Rd2 {[%clk 0:00:05]} 39. Ra6+ {[%clk 0:00:19]}  Kf5 {[%clk 0:00:05]} 40. g4+ {[%clk 0:00:17]}  Kg5 {[%clk 0:00:04]} 41. Kg3 {[%clk 0:00:18]}  f5 {[%clk 0:00:04]} 42. f4+ {[%clk 0:00:17]}  Kh6 {[%clk 0:00:04]} 43. gxf5 {[%clk 0:00:18]} 1-0


[Site "https://www.chess.com"]

[Event "Late Titled Tuesday Blitz February 8 2022"]
[White "Taichman, Ori"]
[Black "Calcada, Lucas Galvan"]
[WhiteFideId "2804069"]
[BlackFideId "22746099"]
[WhiteElo "2227"]
[BlackElo "1402"]
[Result "1-0"]
[Round "01"]
[TimeControl "180+1"]
[Date "2022.02.09"]
[WhiteClock "0:02:22"]
[BlackClock "0:01:31"]

1. e4 {[%clk 0:03:00]}  c5 {[%clk 0:02:55]} 2. Nf3 {[%clk 0:02:58]}  d6 {[%clk 0:02:53]} 3. d4 {[%clk 0:02:57]}  cxd4 {[%clk 0:02:53]} 4. Nxd4 {[%clk 0:02:58]}  Nf6 {[%clk 0:02:49]} 5. Nc3 {[%clk 0:02:59]}  a6 {[%clk 0:02:49]} 6. Bg5 {[%clk 0:02:57]}  e6 {[%clk 0:02:48]} 7. f4 {[%clk 0:02:57]}  Qc7 {[%clk 0:02:47]} 8. Qf3 {[%clk 0:02:57]}  Be7 {[%clk 0:02:47]} 9. O-O-O {[%clk 0:02:56]}  Nbd7 {[%clk 0:02:47]} 10. g4 {[%clk 0:02:57]}  h6 {[%clk 0:02:44]} 11. h4 {[%clk 0:02:56]}  hxg5 {[%clk 0:02:26]} 12. hxg5 {[%clk 0:02:57]}  Rxh1 {[%clk 0:02:24]} 13. Qxh1 {[%clk 0:02:56]}  Nxg4 {[%clk 0:02:04]} 14. Qh5 {[%clk 0:02:55]}  Ne3 {[%clk 0:01:53]} 15. Nxe6 {[%clk 0:02:53]}  Qb6 {[%clk 0:01:48]} 16. Nxg7+ {[%clk 0:02:39]}  Kd8 {[%clk 0:01:43]} 17. Qxf7 {[%clk 0:02:36]}  Nf8 {[%clk 0:01:39]} 18. Qe8+ {[%clk 0:02:29]}  Kc7 {[%clk 0:01:36]} 19. Qxe7+ {[%clk 0:02:30]}  Bd7 {[%clk 0:01:35]} 20. Nd5+ {[%clk 0:02:23]}  Nxd5 {[%clk 0:01:34]} 21. exd5 {[%clk 0:02:23]}  Re8 {[%clk 0:01:31]} 22. Nxe8+ {[%clk 0:02:22]} 1-0


[Site "https://www.chess.com"]